[Event "December 19 Late 2023"]
[Site "https://www.chess.com"]
[Date "2023.12.19"]
[Round "4"]
[White "Antunez Soler, Luis"]
[Black "Carrasco Miranda, Andres"]
[Result "1-0"]
[Board "86"]
[TimeControl "180+1"]
[WhiteFideId "3513335"]
[BlackFideId "3405990"]
[WhiteElo "2154"]
[BlackElo "2183"]
[WhiteTeam "CUB"]
[BlackTeam "CHI"]
[WhiteClock "0:01:48"]
[BlackClock "0:00:47"]

1. e4 {[%clk 0:03:00]}  e5 {[%clk 0:02:56]} 2. Nf3 {[%clk 0:03:01]}  Nc6 {[%clk 0:02:56]} 3. Bc4 {[%clk 0:03:01]}  Bc5 {[%clk 0:02:56]} 4. b4 {[%clk 0:03:00]}  Bxb4 {[%clk 0:02:55]} 5. c3 {[%clk 0:03:01]}  Be7 {[%clk 0:02:56]} 6. d4 {[%clk 0:03:02]}  Na5 {[%clk 0:02:56]} 7. Be2 {[%clk 0:03:01]}  d6 {[%clk 0:02:56]} 8. Qa4+ {[%clk 0:03:02]}  c6 {[%clk 0:02:54]} 9. dxe5 {[%clk 0:03:02]}  dxe5 {[%clk 0:02:53]} 10. Nxe5 {[%clk 0:03:03]}  Nf6 {[%clk 0:02:52]} 11. O-O {[%clk 0:03:04]}  O-O {[%clk 0:02:52]} 12. Rd1 {[%clk 0:03:04]}  Qc7 {[%clk 0:02:51]} 13. Nf3 {[%clk 0:03:05]}  b5 {[%clk 0:02:50]} 14. Qc2 {[%clk 0:03:05]}  Re8 {[%clk 0:02:38]} 15. Bg5 {[%clk 0:03:04]}  h6 {[%clk 0:02:38]} 16. Bh4 {[%clk 0:03:04]}  Bg4 {[%clk 0:02:35]} 17. Bg3 {[%clk 0:02:41]}  Qb6 {[%clk 0:02:35]} 18. Nbd2 {[%clk 0:02:38]}  Nh5 {[%clk 0:02:29]} 19. e5 {[%clk 0:02:21]}  Bc5 {[%clk 0:02:05]} 20. Rf1 {[%clk 0:02:10]}  Nxg3 {[%clk 0:01:58]} 21. hxg3 {[%clk 0:02:09]}  Rxe5 {[%clk 0:01:53]} 22. Nxe5 {[%clk 0:02:02]}  Bxe2 {[%clk 0:00:47]} 23. Nd7 {[%clk 0:01:48]} 1-0

[Event "December 19 Late 2023"]
[Site "https://www.chess.com"]
[Date "2023.12.19"]
[Round "4"]
[White "Womacka, Mathias"]
[Black "Khodabandeh, Milad"]
[Result "1-0"]
[Board "91"]
[TimeControl "180+1"]
[WhiteFideId "4611390"]
[BlackFideId "12538620"]
[WhiteElo "2376"]
[BlackElo "1846"]
[WhiteTeam "GER"]
[BlackTeam "IRI"]
[WhiteClock "0:00:17"]
[BlackClock "0:00:00"]

1. e4 {[%clk 0:03:00]}  e5 {[%clk 0:02:58]} 2. Nf3 {[%clk 0:03:00]}  Nc6 {[%clk 0:02:58]} 3. Bb5 {[%clk 0:03:01]}  a6 {[%clk 0:02:58]} 4. Bxc6 {[%clk 0:03:01]}  dxc6 {[%clk 0:02:58]} 5. O-O {[%clk 0:03:01]}  f6 {[%clk 0:02:57]} 6. d4 {[%clk 0:03:00]}  exd4 {[%clk 0:02:58]} 7. Nxd4 {[%clk 0:03:00]}  c5 {[%clk 0:02:58]} 8. Ne2 {[%clk 0:03:01]}  Qxd1 {[%clk 0:02:58]} 9. Rxd1 {[%clk 0:03:01]}  Bd7 {[%clk 0:02:57]} 10. Nbc3 {[%clk 0:03:01]}  O-O-O {[%clk 0:02:57]} 11. Be3 {[%clk 0:03:02]}  Be6 {[%clk 0:02:53]} 12. Rxd8+ {[%clk 0:02:57]}  Kxd8 {[%clk 0:02:53]} 13. Rd1+ {[%clk 0:02:57]}  Kc8 {[%clk 0:02:54]} 14. Nd5 {[%clk 0:02:57]}  Bxd5 {[%clk 0:02:54]} 15. Rxd5 {[%clk 0:02:55]}  b6 {[%clk 0:02:54]} 16. Rd2 {[%clk 0:02:50]}  Ne7 {[%clk 0:02:52]} 17. Nf4 {[%clk 0:02:46]}  Nc6 {[%clk 0:02:47]} 18. Ne6 {[%clk 0:02:44]}  g5 {[%clk 0:02:07]} 19. h4 {[%clk 0:02:22]}  h6 {[%clk 0:02:05]} 20. h5 {[%clk 0:02:04]}  Bd6 {[%clk 0:01:53]} 21. f3 {[%clk 0:01:47]}  Be5 {[%clk 0:01:34]} 22. c3 {[%clk 0:01:25]}  Re8 {[%clk 0:01:10]} 23. Ng7 {[%clk 0:01:24]}  Rh8 {[%clk 0:00:58]} 24. Nf5 {[%clk 0:01:19]}  Rh7 {[%clk 0:00:53]} 25. Kf2 {[%clk 0:01:17]}  Ne7 {[%clk 0:00:52]} 26. Nxe7+ {[%clk 0:01:09]}  Rxe7 {[%clk 0:00:53]} 27. g3 {[%clk 0:01:09]}  Rd7 {[%clk 0:00:48]} 28. Rxd7 {[%clk 0:01:07]}  Kxd7 {[%clk 0:00:49]} 29. f4 {[%clk 0:01:08]}  Bd6 {[%clk 0:00:32]} 30. Kf3 {[%clk 0:01:03]}  Ke6 {[%clk 0:00:31]} 31. Kg4 {[%clk 0:00:44]}  b5 {[%clk 0:00:20]} 32. b3 {[%clk 0:00:38]}  c4 {[%clk 0:00:17]} 33. bxc4 {[%clk 0:00:36]}  bxc4 {[%clk 0:00:18]} 34. Bd4 {[%clk 0:00:26]}  Ba3 {[%clk 0:00:17]} 35. fxg5 {[%clk 0:00:19]}  hxg5 {[%clk 0:00:13]} 36. h6 {[%clk 0:00:19]}  Bf8 {[%clk 0:00:13]} 37. Kh5 {[%clk 0:00:19]}  Kf7 {[%clk 0:00:13]} 38. e5 {[%clk 0:00:18]}  fxe5 {[%clk 0:00:08]} 39. Bxe5 {[%clk 0:00:18]}  c6 {[%clk 0:00:00]} 40. Kxg5 {[%clk 0:00:17]} 1-0

[Event "December 19 Late 2023"]
[Site "https://www.chess.com"]
[Date "2023.12.19"]
[Round "4"]
[White "Mazzilli, Piero"]
[Black "Lymar, Vladislav"]
[Result "0-1"]
[Board "94"]
[TimeControl "180+1"]
[WhiteFideId "807087"]
[BlackFideId "14162180"]
[WhiteElo "2313"]
[BlackElo "2158"]
[WhiteTeam "ITA"]
[BlackTeam "UKR"]
[WhiteClock "0:00:13"]
[BlackClock "0:00:08"]

1. e4 {[%clk 0:03:00]}  d6 {[%clk 0:03:00]} 2. d4 {[%clk 0:03:00]}  Nf6 {[%clk 0:03:00]} 3. Nc3 {[%clk 0:03:01]}  e5 {[%clk 0:03:01]} 4. dxe5 {[%clk 0:02:59]}  dxe5 {[%clk 0:03:02]} 5. Qxd8+ {[%clk 0:02:59]}  Kxd8 {[%clk 0:03:03]} 6. f3 {[%clk 0:02:58]}  Be6 {[%clk 0:03:00]} 7. Be3 {[%clk 0:02:57]}  Nbd7 {[%clk 0:02:58]} 8. O-O-O {[%clk 0:02:57]}  Bd6 {[%clk 0:02:57]} 9. Nge2 {[%clk 0:02:53]}  Ke7 {[%clk 0:02:55]} 10. Ng3 {[%clk 0:02:51]}  g6 {[%clk 0:02:52]} 11. Bb5 {[%clk 0:02:43]}  a6 {[%clk 0:02:44]} 12. Bxd7 {[%clk 0:02:41]}  Nxd7 {[%clk 0:02:41]} 13. Nd5+ {[%clk 0:02:38]}  Bxd5 {[%clk 0:02:39]} 14. Rxd5 {[%clk 0:02:38]}  h5 {[%clk 0:02:35]} 15. Rhd1 {[%clk 0:02:36]}  h4 {[%clk 0:02:32]} 16. Nf1 {[%clk 0:02:36]}  f6 {[%clk 0:02:27]} 17. c4 {[%clk 0:02:27]}  b6 {[%clk 0:02:16]} 18. Bf2 {[%clk 0:02:12]}  a5 {[%clk 0:02:06]} 19. Ne3 {[%clk 0:02:07]}  Nf8 {[%clk 0:02:02]} 20. Ng4 {[%clk 0:01:54]}  Ne6 {[%clk 0:02:01]} 21. Be3 {[%clk 0:01:48]}  Rad8 {[%clk 0:01:54]} 22. a3 {[%clk 0:01:47]}  a4 {[%clk 0:01:13]} 23. Kc2 {[%clk 0:01:45]}  Rhe8 {[%clk 0:01:00]} 24. Kc3 {[%clk 0:01:41]}  f5 {[%clk 0:00:51]} 25. exf5 {[%clk 0:00:56]}  gxf5 {[%clk 0:00:52]} 26. Nh6 {[%clk 0:00:55]}  Kf6 {[%clk 0:00:48]} 27. g4 {[%clk 0:00:24]}  f4 {[%clk 0:00:39]} 28. Bf2 {[%clk 0:00:20]}  Rd7 {[%clk 0:00:28]} 29. Bxh4+ {[%clk 0:00:18]}  Kg6 {[%clk 0:00:28]} 30. Nf5 {[%clk 0:00:18]}  Rh7 {[%clk 0:00:26]} 31. R1d2 {[%clk 0:00:12]}  Nd4 {[%clk 0:00:12]} 32. Nxd6 {[%clk 0:00:11]}  cxd6 {[%clk 0:00:09]} 33. Rxd6+ {[%clk 0:00:11]}  Kf7 {[%clk 0:00:10]} 34. Rd7+ {[%clk 0:00:11]}  Ke6 {[%clk 0:00:09]} 35. Rxh7 {[%clk 0:00:11]}  Nxf3 {[%clk 0:00:09]} 36. Rh6+ {[%clk 0:00:09]}  Kf7 {[%clk 0:00:09]} 37. Rf2 {[%clk 0:00:09]}  e4 {[%clk 0:00:08]} 38. Rf6+ {[%clk 0:00:09]}  Kg7 {[%clk 0:00:08]} 39. Rxf4 {[%clk 0:00:10]}  Nxh4 {[%clk 0:00:08]} 40. g5 {[%clk 0:00:09]}  Ng6 {[%clk 0:00:07]} 41. Rf7+ {[%clk 0:00:09]}  Kg8 {[%clk 0:00:07]} 42. R2f6 {[%clk 0:00:09]}  Ne5 {[%clk 0:00:07]} 43. Rb7 {[%clk 0:00:06]}  e3 {[%clk 0:00:07]} 44. Rf1 {[%clk 0:00:06]}  e2 {[%clk 0:00:07]} 45. Re1 {[%clk 0:00:06]}  Nf3 {[%clk 0:00:08]} 46. Rxe2 {[%clk 0:00:06]}  Rxe2 {[%clk 0:00:09]} 47. Rxb6 {[%clk 0:00:06]}  Ne1 {[%clk 0:00:07]} 48. Rb8+ {[%clk 0:00:05]}  Kg7 {[%clk 0:00:07]} 49. c5 {[%clk 0:00:06]}  Rc2+ {[%clk 0:00:05]} 50. Kd4 {[%clk 0:00:06]}  Nf3+ {[%clk 0:00:05]} 51. Kd5 {[%clk 0:00:06]}  Nxg5 {[%clk 0:00:04]} 52. c6 {[%clk 0:00:06]}  Nf7 {[%clk 0:00:05]} 53. Rb7 {[%clk 0:00:06]}  Kf6 {[%clk 0:00:05]} 54. c7 {[%clk 0:00:06]}  Ng5 {[%clk 0:00:03]} 55. Rb6+ {[%clk 0:00:06]}  Ke7 {[%clk 0:00:03]} 56. Rc6 {[%clk 0:00:07]}  Rd2+ {[%clk 0:00:04]} 57. Kc5 {[%clk 0:00:07]}  Ne6+ {[%clk 0:00:03]} 58. Kb6 {[%clk 0:00:08]}  Nxc7 {[%clk 0:00:03]} 59. Rxc7+ {[%clk 0:00:09]}  Kd6 {[%clk 0:00:04]} 60. Rc6+ {[%clk 0:00:09]}  Kd7 {[%clk 0:00:04]} 61. Rc4 {[%clk 0:00:10]}  Rxb2+ {[%clk 0:00:04]} 62. Rb4 {[%clk 0:00:10]}  Rxb4+ {[%clk 0:00:04]} 63. axb4 {[%clk 0:00:09]}  a3 {[%clk 0:00:05]} 64. Kb7 {[%clk 0:00:10]}  a2 {[%clk 0:00:06]} 65. b5 {[%clk 0:00:11]}  a1=Q {[%clk 0:00:06]} 66. b6 {[%clk 0:00:11]}  Qa5 {[%clk 0:00:06]} 67. Kb8 {[%clk 0:00:12]}  Qxb6+ {[%clk 0:00:06]} 68. Ka8 {[%clk 0:00:13]}  Kc7 {[%clk 0:00:07]} 69. h3 {[%clk 0:00:13]}  Qb7# {[%clk 0:00:08]} 0-1

[Event "December 19 Late 2023"]
[Site "https://www.chess.com"]
[Date "2023.12.19"]
[Round "4"]
[White "Rees, Ioan"]
[Black "Sokolov, Andrei"]
[Result "0-1"]
[Board "95"]
[TimeControl "180+1"]
[WhiteFideId "1801236"]
[BlackFideId "11600306"]
[WhiteElo "2270"]
[BlackElo "2473"]
[WhiteTeam "WLS"]
[BlackTeam "LAT"]
[WhiteClock "0:01:11"]
[BlackClock "0:00:13"]

1. e4 {[%clk 0:03:00]}  e5 {[%clk 0:03:00]} 2. Nf3 {[%clk 0:03:00]}  Nc6 {[%clk 0:03:00]} 3. Bc4 {[%clk 0:03:00]}  Bc5 {[%clk 0:02:58]} 4. d3 {[%clk 0:02:59]}  Nf6 {[%clk 0:02:57]} 5. c3 {[%clk 0:02:57]}  d6 {[%clk 0:02:44]} 6. O-O {[%clk 0:02:51]}  O-O {[%clk 0:02:43]} 7. a4 {[%clk 0:02:51]}  a5 {[%clk 0:02:42]} 8. Re1 {[%clk 0:02:45]}  Ba7 {[%clk 0:02:38]} 9. Nbd2 {[%clk 0:02:40]}  Be6 {[%clk 0:02:33]} 10. Bb5 {[%clk 0:02:40]}  h6 {[%clk 0:02:25]} 11. Nf1 {[%clk 0:02:38]}  Ng4 {[%clk 0:02:18]} 12. d4 {[%clk 0:02:35]}  exd4 {[%clk 0:01:54]} 13. cxd4 {[%clk 0:02:36]}  Ne7 {[%clk 0:01:42]} 14. Ng3 {[%clk 0:02:26]}  f5 {[%clk 0:01:35]} 15. exf5 {[%clk 0:02:10]}  Bxf5 {[%clk 0:01:16]} 16. h3 {[%clk 0:02:05]}  Nf6 {[%clk 0:00:56]} 17. Rxe7 {[%clk 0:02:04]}  Qxe7 {[%clk 0:00:57]} 18. Nxf5 {[%clk 0:02:04]}  Qe4 {[%clk 0:00:53]} 19. Ng3 {[%clk 0:02:02]}  Qe7 {[%clk 0:00:42]} 20. Be3 {[%clk 0:01:53]}  Ne4 {[%clk 0:00:34]} 21. Qb3+ {[%clk 0:01:50]}  Kh8 {[%clk 0:00:31]} 22. Bd3 {[%clk 0:01:49]}  Nxg3 {[%clk 0:00:28]} 23. Bxh6 {[%clk 0:01:35]}  gxh6 {[%clk 0:00:19]} 24. fxg3 {[%clk 0:01:36]}  Qe3+ {[%clk 0:00:17]} 25. Kh2 {[%clk 0:01:36]}  Bxd4 {[%clk 0:00:14]} 26. Nxd4 {[%clk 0:01:34]}  Qxd4 {[%clk 0:00:14]} 27. Rd1 {[%clk 0:01:25]}  Qe5 {[%clk 0:00:13]} 28. Qxb7 {[%clk 0:01:21]}  Rg8 {[%clk 0:00:13]} 29. Qxc7 {[%clk 0:01:11]}  Qxg3+ {[%clk 0:00:12]} 30. Kh1 {[%clk 0:01:11]}  Qxg2# {[%clk 0:00:13]} 0-1

[Event "December 19 Late 2023"]
[Site "https://www.chess.com"]
[Date "2023.12.19"]
[Round "4"]
[White "Tan, Ralph"]
[Black "Demina, Marya"]
[Result "1-0"]
[Board "97"]
[TimeControl "180+1"]
[WhiteFideId "30966590"]
[BlackFideId "4195671"]
[WhiteElo "2099"]
[BlackElo "1978"]
[WhiteTeam "USA"]
[BlackTeam "RUS"]
[WhiteClock "0:02:52"]
[BlackClock "0:02:28"]

1. e4 {[%clk 0:03:00]}  c6 {[%clk 0:02:59]} 2. Nf3 {[%clk 0:02:59]}  d5 {[%clk 0:02:59]} 3. Nc3 {[%clk 0:03:00]}  dxe4 {[%clk 0:02:58]} 4. Nxe4 {[%clk 0:03:01]}  Nf6 {[%clk 0:02:59]} 5. Qe2 {[%clk 0:02:59]}  Nxe4 {[%clk 0:02:59]} 6. Qxe4 {[%clk 0:02:59]}  Qd5 {[%clk 0:03:00]} 7. Qf4 {[%clk 0:02:59]}  Bf5 {[%clk 0:02:48]} 8. Bc4 {[%clk 0:02:54]}  Qe4+ {[%clk 0:02:47]} 9. Qxe4 {[%clk 0:02:54]}  Bxe4 {[%clk 0:02:48]} 10. Bxf7+ {[%clk 0:02:54]}  Kxf7 {[%clk 0:02:48]} 11. Ng5+ {[%clk 0:02:54]}  Ke8 {[%clk 0:02:48]} 12. Nxe4 {[%clk 0:02:55]}  Nd7 {[%clk 0:02:46]} 13. O-O {[%clk 0:02:54]}  e5 {[%clk 0:02:44]} 14. Re1 {[%clk 0:02:53]}  h6 {[%clk 0:02:40]} 15. d4 {[%clk 0:02:52]}  Bd6 {[%clk 0:02:28]} 16. Nxd6+ {[%clk 0:02:52]} 1-0

[Event "December 19 Late 2023"]
[Site "https://www.chess.com"]
[Date "2023.12.19"]
[Round "4"]
[White "Veloso, Henrique Barbosa"]
[Black "Chylewski, Patryk"]
[Result "0-1"]
[Board "98"]
[TimeControl "180+1"]
[WhiteFideId "22784853"]
[BlackFideId "1186191"]
[WhiteElo "1881"]
[BlackElo "2176"]
[WhiteTeam "BRA"]
[BlackTeam "POL"]
[WhiteClock "0:00:00"]
[BlackClock "0:00:07"]

1. d4 {[%clk 0:03:00]}  Nf6 {[%clk 0:02:59]} 2. c4 {[%clk 0:03:00]}  c5 {[%clk 0:02:58]} 3. d5 {[%clk 0:03:00]}  e6 {[%clk 0:02:55]} 4. Nc3 {[%clk 0:02:59]}  exd5 {[%clk 0:02:55]} 5. cxd5 {[%clk 0:03:00]}  d6 {[%clk 0:02:55]} 6. e4 {[%clk 0:03:00]}  g6 {[%clk 0:02:56]} 7. Nf3 {[%clk 0:02:57]}  Bg7 {[%clk 0:02:56]} 8. Bd3 {[%clk 0:02:57]}  O-O {[%clk 0:02:55]} 9. O-O {[%clk 0:02:57]}  Na6 {[%clk 0:02:47]} 10. Bxa6 {[%clk 0:02:50]}  bxa6 {[%clk 0:02:48]} 11. h3 {[%clk 0:02:49]}  Rb8 {[%clk 0:02:45]} 12. Qc2 {[%clk 0:02:46]}  Re8 {[%clk 0:02:25]} 13. Bf4 {[%clk 0:02:44]}  Nh5 {[%clk 0:02:12]} 14. Bh2 {[%clk 0:02:39]}  Qf6 {[%clk 0:02:10]} 15. Rfe1 {[%clk 0:02:13]}  Nf4 {[%clk 0:02:06]} 16. Rad1 {[%clk 0:01:59]}  Nxh3+ {[%clk 0:01:53]} 17. Kh1 {[%clk 0:01:47]}  Bg4 {[%clk 0:01:46]} 18. Rd3 {[%clk 0:01:44]}  Nf4 {[%clk 0:01:44]} 19. Bxf4 {[%clk 0:01:42]}  Qxf4 {[%clk 0:01:45]} 20. b3 {[%clk 0:01:32]}  Rb4 {[%clk 0:01:43]} 21. a3 {[%clk 0:01:21]}  Rb7 {[%clk 0:01:18]} 22. Rde3 {[%clk 0:01:19]}  Rbe7 {[%clk 0:01:09]} 23. Kg1 {[%clk 0:01:12]}  Bxc3 {[%clk 0:01:00]} 24. Qxc3 {[%clk 0:01:13]}  Rxe4 {[%clk 0:00:58]} 25. g3 {[%clk 0:00:59]}  Rxe3 {[%clk 0:00:41]} 26. gxf4 {[%clk 0:00:48]}  Rxc3 {[%clk 0:00:40]} 27. Rxe8+ {[%clk 0:00:49]}  Kg7 {[%clk 0:00:40]} 28. Ng5 {[%clk 0:00:49]}  h6 {[%clk 0:00:21]} 29. Ne4 {[%clk 0:00:48]}  Rxb3 {[%clk 0:00:18]} 30. Nxd6 {[%clk 0:00:46]}  Rd3 {[%clk 0:00:19]} 31. Re7 {[%clk 0:00:41]}  Rxd5 {[%clk 0:00:17]} 32. Nxf7 {[%clk 0:00:39]}  Kf6 {[%clk 0:00:17]} 33. Rxa7 {[%clk 0:00:38]}  Rd7 {[%clk 0:00:16]} 34. Rxd7 {[%clk 0:00:25]}  Bxd7 {[%clk 0:00:17]} 35. Ne5 {[%clk 0:00:26]}  Be8 {[%clk 0:00:17]} 36. Kg2 {[%clk 0:00:23]}  Kf5 {[%clk 0:00:17]} 37. Kf3 {[%clk 0:00:24]}  g5 {[%clk 0:00:17]} 38. Nd3 {[%clk 0:00:20]}  c4 {[%clk 0:00:17]} 39. Ne5 {[%clk 0:00:10]}  c3 {[%clk 0:00:16]} 40. Nd3 {[%clk 0:00:07]}  Bb5 {[%clk 0:00:11]} 41. Nb4 {[%clk 0:00:05]}  gxf4 {[%clk 0:00:10]} 42. Nc2 {[%clk 0:00:06]}  Bd3 {[%clk 0:00:08]} 43. Nd4+ {[%clk 0:00:04]}  Ke5 {[%clk 0:00:07]} 44. Nb3 {[%clk 0:00:05]}  h5 {[%clk 0:00:06]} 45. Nc1 {[%clk 0:00:05]}  Bc4 {[%clk 0:00:05]} 46. Kg2 {[%clk 0:00:04]}  Kd4 {[%clk 0:00:05]} 47. Kh3 {[%clk 0:00:04]}  Ke4 {[%clk 0:00:05]} 48. Kh4 {[%clk 0:00:04]}  Kf3 {[%clk 0:00:05]} 49. Kxh5 {[%clk 0:00:03]}  Kxf2 {[%clk 0:00:06]} 50. Kg4 {[%clk 0:00:04]}  Ke3 {[%clk 0:00:06]} 51. Kf5 {[%clk 0:00:02]}  f3 {[%clk 0:00:07]} 52. Ke5 {[%clk 0:00:00]}  f2 {[%clk 0:00:07]} 0-1

[Event "December 19 Late 2023"]
[Site "https://www.chess.com"]
[Date "2023.12.19"]
[Round "4"]
[White "Dwilewicz, Katarzyna"]
[Black "Hamidi, Amir Mohammad"]
[Result "1/2-1/2"]
[Board "100"]
[TimeControl "180+1"]
[WhiteFideId "1148486"]
[BlackFideId "12563285"]
[WhiteElo "2098"]
[BlackElo "2217"]
[WhiteTeam "POL"]
[BlackTeam "IRI"]
[WhiteClock "0:00:04"]
[BlackClock "0:00:05"]

1. e4 {[%clk 0:03:00]}  c5 {[%clk 0:02:58]} 2. c3 {[%clk 0:03:00]}  Nf6 {[%clk 0:02:58]} 3. e5 {[%clk 0:03:00]}  Nd5 {[%clk 0:02:58]} 4. d4 {[%clk 0:03:00]}  cxd4 {[%clk 0:02:58]} 5. Bc4 {[%clk 0:03:00]}  Nb6 {[%clk 0:02:59]} 6. Bb3 {[%clk 0:03:00]}  Nc6 {[%clk 0:02:58]} 7. cxd4 {[%clk 0:03:00]}  d5 {[%clk 0:02:59]} 8. Nc3 {[%clk 0:02:53]}  Bf5 {[%clk 0:02:56]} 9. Nf3 {[%clk 0:02:50]}  e6 {[%clk 0:02:55]} 10. O-O {[%clk 0:02:49]}  Be7 {[%clk 0:02:55]} 11. h3 {[%clk 0:02:49]}  O-O {[%clk 0:02:54]} 12. Bf4 {[%clk 0:02:42]}  Nb4 {[%clk 0:02:52]} 13. Ne1 {[%clk 0:02:37]}  Rc8 {[%clk 0:02:47]} 14. a3 {[%clk 0:02:36]}  Nc6 {[%clk 0:02:47]} 15. Rc1 {[%clk 0:02:27]}  Na5 {[%clk 0:02:46]} 16. Bc2 {[%clk 0:02:23]}  Bxc2 {[%clk 0:02:46]} 17. Qxc2 {[%clk 0:02:17]}  Nac4 {[%clk 0:02:41]} 18. Nd3 {[%clk 0:02:09]}  f6 {[%clk 0:02:28]} 19. exf6 {[%clk 0:01:52]}  Bxf6 {[%clk 0:02:29]} 20. Qe2 {[%clk 0:01:51]}  Bxd4 {[%clk 0:01:57]} 21. Qxe6+ {[%clk 0:01:50]}  Kh8 {[%clk 0:01:58]} 22. Rfd1 {[%clk 0:01:05]}  Qh4 {[%clk 0:01:31]} 23. Qg4 {[%clk 0:00:42]}  Bxf2+ {[%clk 0:01:16]} 24. Nxf2 {[%clk 0:00:40]}  Qxg4 {[%clk 0:01:01]} 25. Nxg4 {[%clk 0:00:39]}  Rxf4 {[%clk 0:01:00]} 26. Nxd5 {[%clk 0:00:38]}  Rff8 {[%clk 0:00:32]} 27. Nxb6 {[%clk 0:00:37]}  Nxb6 {[%clk 0:00:33]} 28. Rxc8 {[%clk 0:00:36]}  Rxc8 {[%clk 0:00:34]} 29. Rd2 {[%clk 0:00:28]}  h6 {[%clk 0:00:32]} 30. Ne5 {[%clk 0:00:25]}  Rc7 {[%clk 0:00:27]} 31. Kf2 {[%clk 0:00:21]}  Kh7 {[%clk 0:00:24]} 32. g4 {[%clk 0:00:21]}  Re7 {[%clk 0:00:21]} 33. Nf3 {[%clk 0:00:19]}  Rc7 {[%clk 0:00:20]} 34. Kg3 {[%clk 0:00:17]}  Nc4 {[%clk 0:00:20]} 35. Rc2 {[%clk 0:00:15]}  Rc6 {[%clk 0:00:19]} 36. Nd4 {[%clk 0:00:14]}  Rc8 {[%clk 0:00:18]} 37. b3 {[%clk 0:00:13]}  Nb6 {[%clk 0:00:18]} 38. Rxc8 {[%clk 0:00:14]}  Nxc8 {[%clk 0:00:18]} 39. Kf4 {[%clk 0:00:12]}  Kg6 {[%clk 0:00:19]} 40. Ke5 {[%clk 0:00:12]}  Kg5 {[%clk 0:00:18]} 41. Nf3+ {[%clk 0:00:12]}  Kg6 {[%clk 0:00:17]} 42. a4 {[%clk 0:00:09]}  h5 {[%clk 0:00:18]} 43. gxh5+ {[%clk 0:00:07]}  Kxh5 {[%clk 0:00:18]} 44. a5 {[%clk 0:00:06]}  Kg6 {[%clk 0:00:16]} 45. Ke6 {[%clk 0:00:06]}  b6 {[%clk 0:00:15]} 46. b4 {[%clk 0:00:05]}  Kh5 {[%clk 0:00:06]} 47. Kd7 {[%clk 0:00:05]}  bxa5 {[%clk 0:00:06]} 48. bxa5 {[%clk 0:00:05]}  Nb6+ {[%clk 0:00:04]} 49. axb6 {[%clk 0:00:05]}  axb6 {[%clk 0:00:05]} 50. Kc6 {[%clk 0:00:05]}  Kg6 {[%clk 0:00:06]} 51. Kxb6 {[%clk 0:00:04]}  Kf5 {[%clk 0:00:06]} 52. Kc6 {[%clk 0:00:03]}  Kf4 {[%clk 0:00:06]} 53. Ng1 {[%clk 0:00:02]}  Kg3 {[%clk 0:00:06]} 54. Kd6 {[%clk 0:00:02]}  Kg2 {[%clk 0:00:06]} 55. h4 {[%clk 0:00:03]}  Kg3 {[%clk 0:00:05]} 56. h5 {[%clk 0:00:02]}  Kg4 {[%clk 0:00:05]} 57. Ke6 {[%clk 0:00:02]}  Kxh5 {[%clk 0:00:05]} 58. Kf5 {[%clk 0:00:02]}  g6+ {[%clk 0:00:05]} 59. Kf4 {[%clk 0:00:03]}  Kh4 {[%clk 0:00:05]} 60. Nf3+ {[%clk 0:00:03]}  Kh5 {[%clk 0:00:05]} 61. Kg3 {[%clk 0:00:03]}  Kh6 {[%clk 0:00:04]} 62. Ng1 {[%clk 0:00:03]}  g5 {[%clk 0:00:04]} 63. Nh3 {[%clk 0:00:04]}  Kg6 {[%clk 0:00:05]} 64. Nxg5 {[%clk 0:00:04]} 1/2-1/2

[Event "December 19 Late 2023"]
[Site "https://www.chess.com"]
[Date "2023.12.19"]
[Round "4"]
[White "Martinez Ramirez, Lennis"]
[Black "Azar, Sebastien"]
[Result "1-0"]
[Board "101"]
[TimeControl "180+1"]
[WhiteFideId "3509079"]
[BlackFideId "2640198"]
[WhiteElo "2405"]
[BlackElo "2395"]
[WhiteTeam "CUB"]
[BlackTeam "CAN"]
[WhiteClock "0:00:15"]
[BlackClock "0:00:08"]

1. d4 {[%clk 0:03:00]}  d5 {[%clk 0:02:59]} 2. Nf3 {[%clk 0:03:01]}  Nf6 {[%clk 0:02:59]} 3. c4 {[%clk 0:03:01]}  c6 {[%clk 0:02:58]} 4. g3 {[%clk 0:03:01]}  Bf5 {[%clk 0:02:54]} 5. Nbd2 {[%clk 0:03:01]}  e6 {[%clk 0:02:54]} 6. Bg2 {[%clk 0:03:02]}  Be7 {[%clk 0:02:54]} 7. Nh4 {[%clk 0:03:02]}  Bg6 {[%clk 0:02:54]} 8. O-O {[%clk 0:03:02]}  Nbd7 {[%clk 0:02:53]} 9. b3 {[%clk 0:03:02]}  O-O {[%clk 0:02:52]} 10. Bb2 {[%clk 0:03:02]}  Re8 {[%clk 0:02:52]} 11. Re1 {[%clk 0:03:01]}  a5 {[%clk 0:02:50]} 12. a3 {[%clk 0:02:59]}  Bf8 {[%clk 0:02:40]} 13. Nxg6 {[%clk 0:02:58]}  hxg6 {[%clk 0:02:39]} 14. e4 {[%clk 0:02:59]}  dxe4 {[%clk 0:02:37]} 15. Nxe4 {[%clk 0:03:00]}  Nxe4 {[%clk 0:02:36]} 16. Rxe4 {[%clk 0:02:59]}  Nf6 {[%clk 0:02:27]} 17. Re3 {[%clk 0:02:55]}  Qc7 {[%clk 0:02:17]} 18. Qc2 {[%clk 0:02:19]}  Red8 {[%clk 0:02:03]} 19. Rd1 {[%clk 0:02:13]}  Rac8 {[%clk 0:01:53]} 20. Bh3 {[%clk 0:02:01]}  Re8 {[%clk 0:01:41]} 21. Rde1 {[%clk 0:01:40]}  Rcd8 {[%clk 0:01:16]} 22. Bg2 {[%clk 0:01:24]}  Rc8 {[%clk 0:01:11]} 23. Bf3 {[%clk 0:01:13]}  Rcd8 {[%clk 0:01:02]} 24. Kg2 {[%clk 0:01:13]}  Rc8 {[%clk 0:01:02]} 25. h4 {[%clk 0:01:13]}  Bd6 {[%clk 0:00:54]} 26. Qc3 {[%clk 0:00:59]}  Qe7 {[%clk 0:00:49]} 27. Qc1 {[%clk 0:00:35]}  Qf8 {[%clk 0:00:41]} 28. Qa1 {[%clk 0:00:34]}  Rcd8 {[%clk 0:00:25]} 29. Rh1 {[%clk 0:00:28]}  Ra8 {[%clk 0:00:22]} 30. h5 {[%clk 0:00:28]}  g5 {[%clk 0:00:19]} 31. h6 {[%clk 0:00:26]}  gxh6 {[%clk 0:00:16]} 32. d5 {[%clk 0:00:23]}  e5 {[%clk 0:00:14]} 33. dxc6 {[%clk 0:00:20]}  g4 {[%clk 0:00:10]} 34. Bd5 {[%clk 0:00:16]}  Nxd5 {[%clk 0:00:07]} 35. cxd5 {[%clk 0:00:17]}  bxc6 {[%clk 0:00:07]} 36. dxc6 {[%clk 0:00:18]}  Rac8 {[%clk 0:00:06]} 37. Rc1 {[%clk 0:00:18]}  Re6 {[%clk 0:00:05]} 38. Rec3 {[%clk 0:00:15]}  e4 {[%clk 0:00:04]} 39. Rc4 {[%clk 0:00:15]}  Qe7 {[%clk 0:00:04]} 40. Re1 {[%clk 0:00:12]}  e3 {[%clk 0:00:03]} 41. Rxg4+ {[%clk 0:00:12]}  Rg6 {[%clk 0:00:01]} 42. Rxg6+ {[%clk 0:00:09]}  fxg6 {[%clk 0:00:02]} 43. Rxe3 {[%clk 0:00:10]}  Qc7 {[%clk 0:00:03]} 44. Rc3 {[%clk 0:00:09]}  Be5 {[%clk 0:00:03]} 45. Rc4 {[%clk 0:00:09]}  Bxb2 {[%clk 0:00:03]} 46. Qxb2 {[%clk 0:00:10]}  Qd6 {[%clk 0:00:03]} 47. Qc3 {[%clk 0:00:10]}  Rc7 {[%clk 0:00:03]} 48. Rc5 {[%clk 0:00:10]}  Kh7 {[%clk 0:00:02]} 49. Qxa5 {[%clk 0:00:10]}  Rxc6 {[%clk 0:00:01]} 50. Qa7+ {[%clk 0:00:09]}  Kg8 {[%clk 0:00:01]} 51. Qa8+ {[%clk 0:00:09]}  Kf7 {[%clk 0:00:01]} 52. Qxc6 {[%clk 0:00:09]}  Qxc6+ {[%clk 0:00:01]} 53. Rxc6 {[%clk 0:00:10]}  h5 {[%clk 0:00:02]} 54. a4 {[%clk 0:00:10]}  h4 {[%clk 0:00:03]} 55. a5 {[%clk 0:00:10]}  hxg3 {[%clk 0:00:04]} 56. fxg3 {[%clk 0:00:11]}  Ke7 {[%clk 0:00:04]} 57. b4 {[%clk 0:00:11]}  Kd7 {[%clk 0:00:05]} 58. b5 {[%clk 0:00:12]}  g5 {[%clk 0:00:05]} 59. a6 {[%clk 0:00:13]}  g4 {[%clk 0:00:06]} 60. a7 {[%clk 0:00:13]}  Kd8 {[%clk 0:00:07]} 61. a8=Q+ {[%clk 0:00:14]}  Kd7 {[%clk 0:00:08]} 62. Qb7+ {[%clk 0:00:14]}  Kd8 {[%clk 0:00:08]} 63. Rc8# {[%clk 0:00:15]} 1-0